Workbook

Sheet BON DE COMMANDE PARTICULIER
B7: MORILLES | C7: Poids | D7: Prix au Kg | E7: Quantité | F7: Total
B8: Morilles sèches | C8: 100gr | D8: 42 | F8: =E8*D8 -> 0
A9: Sous total | F9: =SUM(F8) -> 0
B11: Fruits secs | C11: Poids | D11: Prix au Kg | E11: Quantité | F11: Total
B12: Flocons d'avoine | C12: 1kg | D12: 2.5 | F12: =E12*D12 -> 0
B13: Abricots Cubes | C13: 1kg | D13: 11.5 | F13: =E13*D13 -> 0
B14: Amande Bâtonnet | C14: 1kg | D14: 15 | F14: 0
B15: Amande Bâtonnet | C15: 500gr | D15: =D14/2 -> 7.5 | F15: 0
B16: Amande Blanchie | C16: 1kg | D16: 16.5 | F16: 0
B17: Amande Blanchie | C17: 500gr | D17: =D16/2 -> 8.25 | F17: 0
B18: Amande Brute | C18: 1kg | D18: 14.65 | F18: 0
B19: Amande Brute | C19: 500gr | D19: =D18/2 -> 7.325 | F19: 0
B20: Amande Effilée | C20: 1kg | D20: 14.5 | F20: 0
B21: Amande Effilée | C21: 500gr | D21: =D20/2 -> 7.25 | F21: 0
B22: Amande Hachée | C22: 1kg | D22: 13.95 | F22: 0
B23: Amande Hachée | C23: 500gr | D23: =D22/2 -> 6.975 | F23: 0
B24: Amande Poudre Blanche | C24: 1kg | D24: 13.5 | F24: 0
B25: Amande Poudre Blanche | C25: 500gr | D25: =D24/2 -> 6.75 | F25: 0
B26: Amande Poudre Brute | C26: 1kg | D26: 14.5 | F26: 0
B27: Amande Poudre Brute | C27: 500gr | D27: =D26/2 -> 7.25 | F27: 0
B28: Cerneaux Noix | C28: 1kg | D28: 15 | F28: 0
B29: Cerneaux Noix | C29: 500gr | D29: =D28/2 -> 7.5 | F29: 0
B30: Cerneaux Noix | C30: 200gr | D30: 4 | F30: 0
B31: Noix Hachée | C31: 1kg | D31: 8.9 | F31: 0
B32: Noix Hachée | C32: 500gr | D32: =D31/2 -> 4.45 | F32: 0
B33: Coco Rapée | C33: 1kg | D33: 6 | F33: 0
B34: Cranberries Séchées | C34: 1kg | D34: 11 | F34: 0
B35: Cranberries Séchées | C35: 500gr | D35: =D34/2 -> 5.5 | F35: 0
B36: Figues Séchée Cubes | C36: 1kg | D36: 8.5 | F36: 0
B37: Noisette Blanchie | C37: 1kg | D37: 17 | F37: 0
B38: Noisette Blanchie | C38: 500gr | D38: =D37/2 -> 8.5 | F38: 0
B39: Noisette Brute | C39: 1kg | D39: 15 | F39: 0
B40: Noisette Brute | C40: 500gr | D40: =D39/2 -> 7.5 | F40: 0
B41: Noisette Poudre | C41: 1kg | D41: 15 | F41: 0
B42: Noisette Poudre | C42: 500gr | D42: =D41/2 -> 7.5 | F42: 0
B43: Noix de Pécan | C43: 1kg | D43: 31 | F43: 0
B44: Noix de Pécan | C44: 500gr | D44: =D43/2 -> 15.5 | F44: 0
B45: Noix de Pécan | C45: 200gr | D45: 6.5 | F45: 0
B46: Pistache Entière | C46: 1kg | D46: 65 | F46: 0
B47: Pistache Entière | C47: 500gr | D47: =D46/2 -> 32.5 | F47: 0
B48: Pistache Entière | C48: 100gr | D48: 6.6 | F48: 0
B49: Pistache Hachée | C49: 1kg | D49: 50 | F49: 0
B50: Pistache Hachée | C50: 500gr | D50: =D49/2 -> 25 | F50: 0
B51: Pistache Hachée | C51: 100gr | D51: 4.95 | F51: 0
B52: Pruneaux | C52: 1kg | D52: 8.8 | F52: 0
B53: Raisin Golden | C53: 1kg | D53: 6.8 | F53: 0
B54: Raisin Golden | C54: 500gr | D54: =D53/2 -> 3.4 | F54: 0
B55: Raisins Secs | C55: 1kg | D55: 5 | F55: 0
B56: Raisins Secs | C56: 500gr | D56: =D55/2 -> 2.5 | F56: 0
B57: Sésame | C57: 1kg | D57: 5.75 | F57: 0
B58: Graine de Lin | C58: 1kg | D58: 2.68 | F58: 0
B59: Graine de Pavot | C59: 1kg | D59: 7 | F59: 0
A60: Sous total | F60: =SUM(F12:F59) -> 0
B62: Fruits confits | C62: Poids | D62: Prix | E62: Quantité | F62: Total
B63: Tranches orange confites | C63: 1kg | D63: 21 | F63: =E63*D63 -> 0
B64: 12 Tranches orange confites | C64: 200gr | D64: 3.5 | F64: =E64*D64 -> 0
B65: Lamelles citron confits | C65: 1kg | D65: 30 | F65: 0
B66: Lamelles citron confits | C66: 300gr | D66: 11.8 | F66: 0
B67: Lamelles orange confites | C67: 1kg | D67: 23.75 | F67: 0
B68: Lamelles orange confites | C68: 300gr | D68: 9.6 | F68: 0
B69: Fruits confits tricolore | C69: 1kg | D69: 9 | F69: 0
B70: Fruits confits tricolore | C70: 200gr | D70: 2.1 | F70: 0
B71: Cubes d'orange confit | C71: 1kg | D71: 9.5 | F71: 0
B72: Cubes d'orange confit | C72: 200gr | D72: 2.1 | F72: 0
B73: Bigarreaux confits | C73: 1kg | D73: 14.14 | F73: 0
B74: Bigarreaux confits | C74: 200gr | D74: 2.94 | F74: 0
B75: Cubes de citron confit | C75: 1kg | D75: 13 | F75: 0
B76: Cubes de citron confit | C76: 200gr | D76: 2.8 | F76: 0
B77: Angélique | C77: 1kg | D77: 19.44 | F77: 0
B78: Angélique | C78: 200gr | D78: =D77/5 -> 3.888 | F78: 0
A79: Sous total | F79: =SUM(F63:F78) -> 0
B81: Chocolat | C81: Poids | D81: Prix | E81: Quantité | F81: Total
A82: BARRY | B82: Alto en Sol | C82: 1kg | D82: 21.25 | F82: =E82*D82 -> 0
B83: Alto en Sol | C83: 500gr | D83: =D82/2 -> 10.625 | F83: =E83*D83 -> 0
B84: Alunga | C84: 1kg | D84: 17 | F84: 0
B85: Alunga | C85: 500gr | D85: =D84/2 -> 8.5 | F85: 0
B86: Force Noire | C86: 1kg | D86: 11 | F86: 0
B87: Force Noire | C87: 500gr | D87: =D86/2 -> 5.5 | F87: 0
B88: Ghana | C88: 1kg | D88: 17.5 | F88: 0
B89: Ghana | C89: 500gr | D89: =D88/2 -> 8.75 | F89: 0
B90: Inaya | C90: 1kg | D90: 15.5 | F90: 0
B91: Inaya | C91: 500gr | D91: =D90/2 -> 7.75 | F91: 0
B92: Lactée Caramel | C92: 1kg | D92: 17 | F92: 0
B93: Lactée Caramel | C93: 500gr | D93: =D92/2 -> 8.5 | F93: 0
B94: Madirofolo | C94: 1kg | D94: 23 | F94: 0
B95: Madirofolo | C95: 500gr | D95: =D94/2 -> 11.5 | F95: 0
B96: Mexique | C96: 1kg | D96: 17.5 | F96: 0
B97: Mexique | C97: 500gr | D97: =D96/2 -> 8.75 | F97: 0
B98: Ocoa | C98: 1kg | D98: 16 | F98: 0
B99: Ocoa | C99: 500gr | D99: =D98/2 -> 8 | F99: 0
B100: Papouasie | C100: 1kg | D100: 17.5 | F100: 0
B101: Papouasie | C101: 500gr | D101: =D100/2 -> 8.75 | F101: 0
B102: Ruby | C102: 1kg | D102: 16 | F102: 0
B103: Ruby | C103: 500gr | D103: =D102/2 -> 8 | F103: 0
B104: St Domingue | C104: 1kg | D104: 16.5 | F104: 0
B105: St Domingue | C105: 500gr | D105: =D104/2 -> 8.25 | F105: 0
B106: Tanzanie | C106: 1kg | D106: 17.5 | F106: 0
B107: Tanzanie | C107: 500gr | D107: =D106/2 -> 8.75 | F107: 0
B108: Venezuela | C108: 1kg | D108: 18 | F108: 0
B109: Venezuela | C109: 500gr | D109: =D108/2 -> 9 | F109: 0
B110: Zephyr | C110: 1kg | D110: 17 | F110: =E110*D110 -> 0
B111: Zephyr | C111: 500gr | D111: =D110/2 -> 8.5 | F111: 0
B112: Zephyr Caramel | C112: 1kg | D112: 17 | F112: 0
B113: Zephyr Caramel | C113: 500gr | D113: =D112/2 -> 8.5 | F113: 0
A114: CARMA | B114: Nuit Blanche | C114: 1kg | D114: 19 | F114: 0
B115: Nuit Blanche | C115: 500gr | D115: =D114/2 -> 9.5 | F115: 0
B116: Milk Claire | C116: 1kg | D116: 20 | F116: 0
B117: Milk Claire | C117: 500gr | D117: =D116/2 -> 10 | F117: 0
B118: Milk des Alpes | C118: 1kg | D118: 20 | F118: 0
B119: Milk des Alpes | C119: 500gr | D119: =D118/2 -> 10 | F119: 0
B120: Black Zabuye | C120: 1kg | D120: 23 | F120: 0
B121: Black Zabuye | C121: 500gr | D121: =D120/2 -> 11.5 | F121: 0
A122: VALRHONA | B122: Dulcey | C122: 1kg | D122: 27 | F122: 0
B123: Dulcey | C123: 500gr | D123: =D122/2 -> 13.5 | F123: 0
B124: Jivara | C124: 1kg | D124: 26 | F124: 0
B125: Jivara | C125: 500gr | D125: =D124/2 -> 13 | F125: 0
B126: Guanaja | C126: 1kg | D126: 26 | F126: 0
B127: Guanaja | C127: 500gr | D127: =D126/2 -> 13 | F127: 0
A128: BARRY | B128: Plaque Excellence 55% | C128: 2.5kg | D128: 33.1 | F128: 0
B129: Plaque chocolat blanc | C129: 2.5kg | D129: 42 | F129: 0
A130: CEMOI | B130: Bâtons chocolat pâtissier noir | C130: 300 | D130: 11 | F130: 0
B131: Bâtons chocolat pâtissier noir | C131: 500 | D131: 9.5 | F131: 0
A132: BARRY | B132: Bâtons chocolat pâtissier lait | C132: 160 | D132: 15.95 | F132: 0
B133: Gianduja | C133: 500gr ~ | D133: =18.5/2 -> 9.25 | F133: 0
B134: Chocolat arome orange | C134: 500gr | D134: 8 | F134: 0
B135: Chocolat arome fraise | C135: 500gr | D135: 8 | F135: 0
B136: Cacao Brute | C136: 1kg | D136: 11.5 | F136: 0
B137: Cara Crakine | C137: 1kg | D137: 15 | F137: 0
B138: Pralin Feuilletine | C138: 1kg | D138: 26 | F138: 0
B139: Praliné Amandes Noisettes | C139: 1kg | D139: 20 | F139: 0
B140: Pate de Praliné Noisette | C140: 150gr | D140: 8.5 | F140: 0
B141: Beurre de Cacao | C141: 1kg | D141: 25 | F141: 0
B142: Mycryo | C142: 1kg | D142: 14.8 | F142: 0
A143: Sout total | F143: =SUM(F82:F142) -> 0
B145: Parsemages divers | C145: Poids | D145: Prix | E145: Quantité | F145: Total
B146: Vermicelles chocolat | C146: 200gr | D146: 3.5 | F146: =E146*D146 -> 0
B147: Pailletés Chocolat | C147: 200gr | D147: 3.4 | F147: 0
B148: Praligrain | C148: 200gr | D148: 4.4 | F148: 0
B149: Crispearls Blanc | C149: 100gr | D149: 1.95 | F149: 0
B150: Crispearls Lait | C150: 100gr | D150: 1.89 | F150: 0
B151: Crispearls Caramel | C151: 100gr | D151: 2.2 | F151: 0
B152: Crispearls Noir | C152: 100gr | D152: 1.75 | F152: 0
B153: Grué de cacao | C153: 100gr | D153: 2.1 | F153: 0
A154: Sous total | F154: =SUM(F146:F153) -> 0
B156: Arômes - Extraits | C156: Poids | D156: Prix | E156: Quantité | F156: Total
B157: Eau de fleur d’oranger | C157: 100ml | D157: 3.95 | F157: =E157*D157 -> 0
B158: Eau de rose | C158: 100ml | D158: 4.45 | F158: 0
B159: Jus de citron | C159: 1L | D159: 5.6 | F159: 0
B160: Extrait de Vanille Madagascar | C160: 1L | D160: 65 | F160: 0
B161: Extrait de Vanille Tahitensis | C161: 50cl | D161: 63 | F161: 0
B162: Arome de Vanille Boulpât | C162: 1L | D162: 16.89 | F162: 0
B163: Arome naturel de Vanille | C163: 1L | D163: 44 | F163: 0
B164: Arome de Café Gout Brésil | C164: 1L | D164: 25.5 | F164: 0
B165: Caramel Patissier | C165: 250ml | D165: 4.2 | F165: 0
B166: Caramel Pâtissier | C166: 1,35L | D166: 12.5 | F166: 0
B167: Extrait de Café | C167: 1L | D167: 34.3 | F167: 0
B168: Extrait de Café | C168: 90ml | D168: 5.6 | F168: 0
B169: Arome Fleur d’oranger | C169: 1L | D169: 3.63 | F169: 0
B170: Arôme Mallard ferrière (parfum spécifique) | C170: 125ml | D170: 9.3 | F170: 0
B171: Extrait de Vanille Madagascar | C171: 250ml | D171: 33 | F171: 0
B172: Extrait de Vanille Tahitensis | C172: 250ml | D172: 33 | F172: 0
B173: 5 Gousses de vanille | D173: 20 | F173: 0
B174: 2 Gousses de vanille | D174: 8 | F174: 0
A175: Sous total | F175: =SUM(F157:F174) -> 0
B177: Pate de Nougat - Amande - Marrons - Pistache | C177: Poids | D177: Prix | E177: Quantité | F177: Total | G177: Couleurs
B178: Pate de Nougat | C178: 150gr | D178: 9.6 | F178: =E178*D178 -> 0 | I178: Blanche
B179: Pâte d’amande 33% Blanche ou tricolore | C179: 250gr | D179: 2.2 | F179: =E179*D179 -> 0 | H179: 1 | I179: Tricolore
B180: Pâte d’amande 33% Blanche ou tricolore | C180: 250gr | D180: 2.2 | F180: 0 | H180: 3 | I180: Tricolore
B181: Pâte d’amande 33% Blanche | C181: 1kg | D181: 8.8 | F181: 0
B182: Pâte d’amande 50% Blanche | C182: 1kg | D182: 12.5 | F182: 0
B183: Marrons entiers en sirop | C183: 370gr | D183: 12.55 | F183: 0
B184: Purée de marron | C184: 850gr | D184: 8.15 | F184: 0
B185: Pate de marron | C185: 850gr | D185: 10.41 | F185: 0
B186: Crème de marron | C186: 850gr | D186: 7.4 | F186: 0
B187: Crème de marron | C187: 350gr | D187: 4.6 | F187: 0
B188: Crème de marron | C188: 80gr | D188: 1.95 | F188: 0
B189: Marrons au sirop | C189: 600gr | D189: 27.45 | F189: 0
B190: Pate de pistache 30% | C190: 200gr | D190: 9.6 | F190: 0
B191: Pate de Pistache 70% | C191: 200gr | D191: 13 | F191: 0
B192: Pate de Pistache 99% | C192: 200gr | D192: 15 | F192: 0
A193: Sous total | F193: =SUM(F178:F192) -> 0
B195: Aide à la patisserie Matériel | D195: Prix | E195: Quantité | F195: Total
B196: Cercle à tarte diametre 16 - 18 - 20 - 22 - 24 - 26 - 28 - 30 - 32 | G196: Par téléphone
B197: Cercle à mousse diametre 26 - 28 - 30 - 32 | G197: Par téléphone
B198: Cercle à vacherin diametre 16 - 18 - 20 - 22 - 24 - 26 - 28 - 30 - 32 | G198: Par téléphone
B199: Bombe de givrage | D199: 7.95 | F199: =E199*D199 -> 0
B200: Graiss’vit Pâtisserie | D200: 6.5 | F200: 0
B201: Graiss’vit Plancha | D201: 6.5 | F201: 0
B202: Feuille Guitare | D202: 0.11 | F202: 0
B203: Bombe de Graisse | D203: 5.5 | F203: 0
B204: Feuille Rhodoid | D204: 0.64 | F204: 0
B205: Cremfix | C205: 750gr | D205: 9.3 | F205: 0
B206: Film Etirable | D206: 7.5 | F206: 0
B207: Papier Cuisson | D207: 7.8 | F207: 0
B208: Aluminium | D208: 19.2 | F208: 0
B209: Poche à douille jetable verte | C209: x100 | D209: 17.46 | F209: 0
B210: Poche à douille jetable | C210: x100 | D210: 17.24 | F210: 0
B211: Poche à douille jetable MF | C211: x100 | D211: 15.72 | F211: 0
B212: Rouleau hetre 42cm | D212: 7.5 | F212: 0
B213: Rouleau hetre 50cm | D213: 7.8 | F213: 0
... 197 more rows
